bitfinex/quotes_BTCUSD_20241003
["timestamp","ask_amount","ask_price","bid_price","bid_amount"]
[1727918418868,0.163452,61180.0,61178.0,0.06377]
[1727918419108,0.163452,61180.0,61178.0,0.05577]
[1727918419832,0.326892,61183.0,61178.0,0.05577]
[1727918420074,0.163454,61179.0,61178.0,0.06277]
[1727918420559,0.02562666,61187.0,61178.0,0.05577]
[1727918420801,0.02562666,61187.0,61185.0,0.03277]
[1727918421053,0.02562666,61187.0,61184.0,0.16344]
[1727918421054,0.326843,61192.0,61186.0,0.05577]
[1727918421298,0.163433,61187.0,61186.0,0.0940368]
[1727918422335,0.163428,61189.0,61186.0,0.05577]
[1727918422592,0.326827,61195.0,61186.0,0.05577]
[1727918422593,0.163433,61187.0,61186.0,0.05577]
[1727918422829,0.18905568,61187.0,61186.0,0.05577]
[1727918423307,0.18905568,61187.0,61186.0,0.06777]
[1727918423600,0.18905568,61187.0,61186.0,0.023]
[1727918424296,0.163433,61187.0,61186.0,0.023]
[1727918427170,0.18905764,61187.0,61186.0,0.023]
[1727918431160,0.02562464,61187.0,61186.0,0.046]
[1727918431387,0.02562464,61187.0,61186.0,0.414706]
[1727918431630,0.02562464,61187.0,61186.0,0.51668213]
[1727918431844,0.163408,61197.0,61193.0,0.163416]
[1727918432059,0.326814,61197.0,61191.0,0.163422]
[1727918432276,0.326781,61203.0,61190.0,0.59501114]
[1727918432277,0.00937658,61196.0,61190.0,0.59501114]
[1727918432511,0.00937658,61196.0,61193.0,0.186416]
[1727918432714,0.17278758,61196.0,61193.0,0.023]
[1727918432922,0.17278758,61196.0,61195.0,0.023]
[1727918433135,0.17278758,61196.0,61194.0,0.08288292]
[1727918433136,0.33619558,61196.0,61193.0,0.001]
[1727918433349,0.36181634,61196.0,61193.0,0.001]
[1727918433571,0.163421,61192.0,61190.0,0.023]
[1727918433992,0.36181634,61196.0,61190.0,0.023]
[1727918434204,0.163421,61192.0,61190.0,0.023]
[1727918434414,0.163421,61192.0,61190.0,0.12615524]
[1727918434853,0.163421,61192.0,61190.0,0.023]
[1727918435284,0.163422,61191.0,61190.0,0.023]
[1727918435703,0.163422,61191.0,61188.0,0.05577]
[1727918435961,0.00937658,61196.0,61191.0,0.023]
[1727918436219,0.00937658,61196.0,61195.0,0.47936026]
[1727918436437,0.00937658,61196.0,61195.0,0.84345906]
[1727918436867,0.00937658,61196.0,61195.0,0.84145906]
[1727918437752,0.00937658,61196.0,61195.0,0.85545906]
[1727918437966,0.00937658,61196.0,61195.0,0.43409409]
[1727918438177,0.00937658,61196.0,61195.0,0.55113051]
[1727918438392,0.00937658,61196.0,61195.0,0.55104925]
[1727918438635,0.00937658,61196.0,61195.0,0.56504925]
[1727918438862,0.00937658,61196.0,61195.0,0.56504649]
[1727918439075,0.00937658,61196.0,61195.0,0.51761842]
[1727918439288,0.00937658,61196.0,61195.0,0.16597]
[1727918439504,0.00937658,61196.0,61195.0,0.15197]
[1727918439716,0.00937658,61196.0,61195.0,0.13797]
[1727918439927,0.00937658,61196.0,61195.0,0.15197]
[1727918440162,0.17278558,61196.0,61195.0,0.15850881]
[1727918440377,0.17278558,61196.0,61195.0,0.014]
[1727918440598,0.17278558,61196.0,61195.0,0.028]
[1727918441364,0.17278558,61196.0,61195.0,0.06077]
[1727918441578,0.00937658,61196.0,61195.0,0.028]
[1727918441798,0.00937658,61196.0,61195.0,0.214412]
[1727918442244,0.00937658,61196.0,61195.0,0.219182]
[1727918442453,0.00937658,61196.0,61195.0,0.25265727]
[1727918442668,0.00937658,61196.0,61195.0,0.37880661]
[1727918442882,0.00937658,61196.0,61195.0,0.33433134]
[1727918443095,0.00937658,61196.0,61195.0,0.35380728]
[1727918443297,0.00937658,61196.0,61195.0,0.38180728]
[1727918444986,0.01101258,61196.0,61195.0,0.34903728]
[1727918445193,0.01101258,61196.0,61195.0,0.38180728]
[1727918445413,0.17442158,61196.0,61195.0,0.028]
[1727918445871,0.17442158,61196.0,61194.0,0.03277]
[1727918445872,0.01101258,61196.0,61194.0,0.03277]
[1727918446283,0.49024,61195.0,61194.0,0.03277]
[1727918446512,0.01101258,61196.0,61194.0,0.03277]
[1727918446754,0.01101258,61196.0,61195.0,0.21205181]
[1727918446983,0.01101258,61196.0,61195.0,0.24305181]
[1727918447413,0.01101258,61196.0,61195.0,0.24630301]
[1727918447625,0.01101258,61196.0,61195.0,0.24305181]
[1727918447856,0.03662949,61196.0,61195.0,0.24305181]
[1727918448296,0.03662949,61196.0,61195.0,0.07163981]
[1727918448504,0.03662949,61196.0,61195.0,0.07155748]
[1727918448715,0.03662949,61196.0,61195.0,0.05209483]
[1727918448932,0.01101258,61196.0,61195.0,0.05209483]
[1727918449173,0.17442158,61196.0,61195.0,0.05209483]
[1727918449393,0.163425,61190.0,61189.0,0.13257]
[1727918449612,0.163425,61190.0,61189.0,0.12903575]
[1727918450064,0.163425,61190.0,61189.0,0.10957]
[1727918450283,0.163425,61190.0,61189.0,0.03277]
[1727918450524,0.163429,61189.0,61187.0,0.27793414]
[1727918450734,0.16343,61188.0,61187.0,0.27793414]
[1727918450949,0.16343,61188.0,61187.0,0.07529269]
[1727918451164,0.16343,61188.0,61187.0,0.07529271]
[1727918451637,0.16343,61188.0,61187.0,0.11736628]
[1727918452082,0.163427,61190.0,61188.0,0.023]
[1727918452300,0.163422,61191.0,61188.0,0.023]
[1727918452524,0.326837,61193.0,61189.0,0.0638079]
[1727918452815,0.01101258,61196.0,61189.0,0.0638079]
[1727918452816,0.163425,61190.0,61189.0,0.0638079]
[1727918453033,0.18904213,61191.0,61190.0,0.03277]
[1727918453256,0.18904213,61191.0,61190.0,0.0937874]
[1727918453701,0.18904213,61191.0,61190.0,0.1167874]
[1727918454148,0.163422,61191.0,61190.0,0.1167874]
[1727918454788,0.163419,61193.0,61190.0,0.1167874]
[1727918455003,0.163421,61192.0,61190.0,0.1167874]
[1727918455217,0.01101258,61196.0,61194.0,0.023]
[1727918455440,0.01101258,61196.0,61195.0,0.023]
[1727918455668,0.01101258,61196.0,61195.0,0.05577]
[1727918456582,0.01101258,61196.0,61195.0,0.06177]
[1727918456799,0.01101258,61196.0,61195.0,0.16188712]
[1727918457257,0.01101258,61196.0,61195.0,0.15588712]
[1727918457696,0.03663033,61196.0,61195.0,0.16888712]
[1727918458381,0.03663033,61196.0,61195.0,0.16288712]
[1727918458618,0.000818,61206.0,61195.0,0.16288712]
[1727918458619,0.000818,61217.0,61199.0,0.023]
[1727918458849,0.000818,61217.0,61207.0,0.21915]
[1727918459076,0.000818,61217.0,61207.0,0.57850167]
[1727918459298,0.000818,61217.0,61207.0,0.68350167]
[1727918459742,0.000818,61217.0,61207.0,0.73212812]
[1727918460452,0.000818,61217.0,61207.0,0.74612812]
[1727918460663,0.000818,61217.0,61207.0,0.77251907]
[1727918461106,0.000818,61217.0,61207.0,0.75295411]
[1727918461331,0.000818,61217.0,61207.0,0.80154504]
[1727918461561,0.000818,61217.0,61207.0,0.79954504]
[1727918461806,0.000818,61217.0,61207.0,0.81899261]
[1727918462251,0.000818,61217.0,61207.0,0.77040168]
[1727918462687,0.000818,61217.0,61207.0,0.75295411]
[1727918463339,0.000818,61217.0,61207.0,0.77240968]
[1727918463794,0.000818,61217.0,61207.0,0.7918622]
[1727918464253,0.000818,61217.0,61207.0,0.7778622]
[1727918464466,0.000818,61217.0,61207.0,0.82643157]
[1727918464690,0.000818,61217.0,61207.0,0.75840968]
[1727918464903,0.000818,61217.0,61207.0,0.92328084]
[1727918465122,0.000818,61217.0,61216.0,0.65530326]
[1727918465341,0.000818,61217.0,61216.0,0.81848997]
[1727918465600,0.000818,61217.0,61216.0,0.91788997]
[1727918465819,0.000818,61217.0,61216.0,0.92288997]
[1727918467163,0.000818,61217.0,61216.0,0.93688997]
[1727918467379,0.000818,61217.0,61216.0,1.00220398]
[1727918467594,0.000818,61217.0,61216.0,1.00020398]
[1727918468265,0.000818,61217.0,61216.0,1.01420398]
[1727918468499,0.000818,61217.0,61216.0,0.75102572]
[1727918468728,0.000818,61217.0,61216.0,0.75602572]
[1727918468943,0.000818,61217.0,61216.0,0.58783901]
[1727918469161,0.000818,61217.0,61216.0,0.55983901]
[1727918469383,0.000818,61217.0,61216.0,0.58783901]
[1727918469603,0.000818,61217.0,61216.0,0.57383901]
[1727918469815,0.000818,61217.0,61216.0,0.55983901]
[1727918470054,0.000818,61217.0,61216.0,0.57383901]
[1727918470700,0.000818,61217.0,61216.0,0.55983901]
[1727918471125,0.000818,61217.0,61216.0,0.47383901]
[1727918471342,0.000818,61217.0,61216.0,0.29843901]
[1727918471554,0.000818,61217.0,61216.0,0.31243901]
[1727918471772,0.164171,61217.0,61216.0,0.07931401]
[1727918472047,0.000818,61217.0,61216.0,0.014]
[1727918472266,0.164171,61217.0,61216.0,0.014]
[1727918472697,0.164171,61217.0,61216.0,0.027]
[1727918472924,0.164171,61217.0,61216.0,0.013]
[1727918473147,0.163377,61208.0,61207.0,0.01945557]
[1727918473366,0.163377,61208.0,61207.0,0.04608094]
[1727918475335,0.163377,61208.0,61207.0,0.02662537]
[1727918476139,0.000818,61217.0,61216.0,0.163355]
[1727918476405,0.000818,61217.0,61216.0,0.186355]
[1727918476592,0.000818,61217.0,61216.0,0.60896824]
[1727918476811,0.000818,61217.0,61216.0,0.69916824]
[1727918477021,0.000818,61217.0,61216.0,0.73193824]
[1727918477229,0.000818,61217.0,61216.0,0.13309653]
[1727918478049,0.000818,61217.0,61216.0,0.30645153]
[1727918478255,0.000818,61217.0,61216.0,0.30971812]
[1727918479314,0.000818,61217.0,61216.0,0.31871812]
[1727918481493,0.000818,61217.0,61216.0,0.65210483]
[1727918481697,0.000818,61217.0,61216.0,0.64883824]
[1727918481904,0.000818,61217.0,61216.0,0.62983824]
[1727918482129,0.000818,61217.0,61216.0,0.64883824]
[1727918482340,0.000818,61217.0,61216.0,0.64083824]
[1727918482552,0.000818,61217.0,61216.0,0.63883824]
[1727918482767,0.000818,61217.0,61216.0,0.64383824]
[1727918483201,0.000818,61217.0,61216.0,0.65783824]
[1727918485018,0.000818,61217.0,61216.0,0.8113611]
[1727918485233,0.000818,61217.0,61216.0,0.85980266]
[1727918485657,0.000818,61217.0,61216.0,0.8113611]
[1727918485865,0.000818,61217.0,61216.0,0.79925615]
[1727918486270,0.000818,61217.0,61216.0,0.75083824]
[1727918486929,0.000818,61217.0,61216.0,0.79925471]
[1727918487599,0.000818,61217.0,61216.0,0.81325467]
[1727918488721,0.000818,61217.0,61216.0,0.76483824]
[1727918489737,0.000818,61217.0,61216.0,0.81325467]
[1727918489983,0.000818,61217.0,61216.0,0.76483824]
[1727918490737,0.000818,61217.0,61216.0,0.79647083]
[1727918491339,0.000818,61217.0,61216.0,0.84488726]
[1727918492414,0.000818,61217.0,61216.0,0.79647083]
[1727918493396,0.000818,61217.0,61216.0,0.84488726]
[1727918493652,0.000818,61217.0,61216.0,0.84481873]
[1727918493897,0.000818,61217.0,61216.0,0.7964023]
[1727918495019,0.000818,61217.0,61216.0,1.2997447]
[1727918495232,0.000818,61217.0,61216.0,1.3047447]
[1727918495469,0.001638,61221.0,61220.0,0.005]
[1727918495706,0.001638,61221.0,61220.0,0.72138132]
[1727918495938,0.001638,61221.0,61220.0,0.69593722]
[1727918496376,0.001638,61221.0,61220.0,0.78968357]
[1727918496625,0.001638,61221.0,61220.0,0.82097277]
[1727918496846,0.001638,61221.0,61220.0,0.71633215]
[1727918497060,0.001638,61221.0,61220.0,0.76188104]
[1727918497498,0.001638,61221.0,61220.0,0.87797622]
[1727918497759,0.001638,61221.0,61220.0,1.11197234]
[1727918498399,0.001638,61221.0,61220.0,1.12597234]
[1727918498618,0.001638,61221.0,61220.0,1.11197234]
[1727918498873,0.001638,61221.0,61220.0,1.0290593]
[1727918499090,0.001638,61221.0,61220.0,1.0010593]
[1727918499315,0.001638,61221.0,61220.0,1.13615448]
[1727918499584,0.001638,61221.0,61220.0,1.15015448]
[1727918499805,0.001638,61221.0,61220.0,1.13615448]
[1727918500234,0.001638,61221.0,61220.0,1.15015448]
[1727918500458,0.001638,61221.0,61220.0,1.0290593]
[1727918500675,0.001638,61221.0,61220.0,0.99751041]
[1727918500904,0.001638,61221.0,61220.0,1.02891902]
[1727918501117,0.001638,61221.0,61220.0,1.02891764]
[1727918501759,0.001638,61221.0,61220.0,1.17416695]
[1727918501945,0.001638,61221.0,61220.0,1.23859396]
[1727918502404,0.001638,61221.0,61220.0,1.06806567]
[1727918502655,0.001638,61221.0,61220.0,1.21331498]
[1727918503524,0.001638,61221.0,61220.0,1.22459396]
[1727918503739,0.001638,61221.0,61220.0,1.07934465]
[1727918503988,0.001638,61221.0,61220.0,1.06806567]
[1727918504439,0.001638,61221.0,61220.0,1.07934465]
[1727918504676,0.001638,61221.0,61220.0,1.06534465]
[1727918504903,0.001638,61221.0,61220.0,1.07934465]
[1727918505336,0.001638,61221.0,61220.0,1.05406567]
[1727918505554,0.001638,61221.0,61220.0,1.06806567]
[1727918505764,0.001638,61221.0,61220.0,0.98166759]
[1727918506150,0.001638,61221.0,61220.0,0.96766759]
[1727918506299,0.001638,61221.0,61220.0,0.95366759]
[1727918506511,0.001638,61221.0,61220.0,0.96256633]
[1727918506749,0.001638,61221.0,61220.0,1.04708778]
[1727918509765,0.001638,61221.0,61220.0,1.01571894]
[1727918510009,0.001638,61221.0,61220.0,1.04704102]
[1727918510222,0.001638,61221.0,61220.0,1.07238826]
[1727918510445,0.001638,61221.0,61220.0,1.04704102]
[1727918510670,0.001638,61221.0,61220.0,1.07238826]
[1727918511117,0.001638,61221.0,61220.0,1.29220516]
[1727918511331,0.001638,61221.0,61220.0,1.04704102]
[1727918511758,0.001638,61221.0,61220.0,1.19281608]
[1727918512856,0.001638,61221.0,61220.0,1.05204102]
[1727918515971,0.001638,61221.0,61220.0,1.04704102]
[1727918517166,0.001638,61221.0,61220.0,0.75116084]
[1727918517384,0.001638,61221.0,61220.0,0.79752413]
[1727918517595,0.001638,61221.0,61220.0,0.67596084]
[1727918518259,0.001638,61221.0,61220.0,0.90712498]
[1727918518471,0.001638,61221.0,61220.0,0.75792224]
[1727918518687,0.001638,61221.0,61220.0,0.68696084]
[1727918518895,0.001638,61221.0,61220.0,0.79824271]
[1727918519101,0.001638,61221.0,61220.0,0.70096084]
[1727918519572,0.001638,61221.0,61220.0,0.80664302]
[1727918519785,0.001638,61221.0,61220.0,0.78232251]
[1727918520001,0.001638,61221.0,61220.0,0.80665697]
[1727918520208,0.001638,61221.0,61220.0,0.82065697]
[1727918520419,0.001638,61221.0,61220.0,0.68496084]
[1727918521309,0.001638,61221.0,61220.0,0.69896084]
[1727918521524,0.001638,61221.0,61220.0,0.67996084]
[1727918521731,0.001638,61221.0,61220.0,0.68496084]
[1727918521961,0.001638,61221.0,61220.0,0.80673974]
[1727918522172,0.001638,61221.0,61220.0,0.82073964]
[1727918522389,0.001638,61221.0,61220.0,0.69886175]
[1727918522621,0.001638,61221.0,61220.0,0.68486175]
[1727918523779,0.001638,61221.0,61220.0,0.69886175]
[1727918523993,0.001638,61221.0,61220.0,0.94402589]
[1727918524240,0.001638,61221.0,61220.0,0.69886175]
[1727918525335,0.001638,61221.0,61220.0,0.7184631]
[1727918526629,0.001638,61221.0,61220.0,0.86478414]
[1727918527261,0.001638,61221.0,61220.0,0.7184631]
[1727918527713,0.001638,61221.0,61220.0,0.85988174]
[1727918527924,0.001638,61221.0,61220.0,0.7184631]
[1727918528415,0.001638,61221.0,61220.0,0.62848615]
[1727918528635,0.001638,61221.0,61220.0,0.8453103]
[1727918528855,0.001638,61221.0,61220.0,0.74581402]
[1727918529071,0.001638,61221.0,61220.0,0.70670247]
[1727918530422,0.001638,61221.0,61220.0,0.85313604]
[1727918532908,0.001638,61221.0,61220.0,0.85311353]
[1727918533353,0.001638,61221.0,61220.0,1.09827767]
[1727918533631,0.001638,61221.0,61220.0,0.70670247]
[1727918535577,0.001638,61221.0,61220.0,0.68714602]
[1727918536276,0.001638,61221.0,61220.0,0.68214602]
[1727918537631,0.001638,61221.0,61220.0,0.93431016]
[1727918537844,0.001638,61221.0,61220.0,0.86374602]
[1727918538980,0.001638,61221.0,61220.0,0.86874602]
[1727918539664,0.001638,61221.0,61220.0,0.92494324]
[1727918539878,0.001638,61221.0,61220.0,0.91094324]
[1727918540101,0.001638,61221.0,61220.0,0.89694324]
[1727918540337,0.001638,61221.0,61220.0,0.90594324]
[1727918540559,0.001638,61221.0,61220.0,0.75084602]
[1727918540806,0.001638,61221.0,61220.0,0.96736887]
[1727918541243,0.001638,61221.0,61220.0,0.98136887]
[1727918541463,0.001638,61221.0,61220.0,0.76484602]
[1727918541700,0.001638,61221.0,61220.0,0.75084602]
[1727918542168,0.001638,61221.0,61220.0,0.76484602]
[1727918543106,0.001638,61221.0,61220.0,1.10191016]
[1727918543322,0.000378,61233.0,61232.0,0.47106318]
[1727918543534,0.000378,61233.0,61232.0,0.71953513]
[1727918543747,0.000378,61233.0,61232.0,0.81953513]
[1727918544424,0.000378,61233.0,61232.0,0.96618055]
[1727918544851,0.000378,61233.0,61232.0,0.98018055]
[1727918545291,0.000378,61233.0,61232.0,0.83353513]
[1727918545502,0.000378,61233.0,61232.0,0.98017973]
[1727918545715,0.000378,61233.0,61232.0,0.83353513]
[1727918547015,0.000378,61233.0,61232.0,0.84553513]
[1727918547461,0.000378,61233.0,61232.0,0.72822855]
[1727918547683,0.000378,61233.0,61232.0,0.53689508]
[1727918547975,0.000378,61233.0,61232.0,0.59531814]
[1727918548203,0.000378,61233.0,61232.0,0.53689508]
[1727918548464,0.000378,61233.0,61232.0,0.55628142]
[1727918549407,0.000378,61233.0,61232.0,0.7280616]
[1727918551161,0.000378,61233.0,61232.0,0.68067526]
[1727918551438,0.000378,61233.0,61232.0,0.27914506]
[1727918551698,0.000378,61233.0,61232.0,0.29314506]
[1727918551920,0.000378,61233.0,61232.0,0.29501964]
[1727918552383,0.000378,61233.0,61232.0,0.28101964]
[1727918552835,0.000378,61233.0,61232.0,0.27314506]
[1727918553098,0.000378,61233.0,61232.0,0.1746731]
[1727918553343,0.000378,61233.0,61232.0,0.08606206]
[1727918553668,0.000378,61233.0,61232.0,0.28918986]
[1727918553669,0.01133688,61233.0,61232.0,0.28918986]
[1727918553879,0.01133688,61233.0,61232.0,0.12044017]
[1727918554113,0.01133688,61233.0,61232.0,0.25970837]
[1727918554352,0.01133688,61233.0,61232.0,0.27270837]
[1727918554598,0.01133688,61233.0,61232.0,0.25970837]
[1727918554803,0.01133688,61233.0,61232.0,0.09639537]
[1727918554995,0.01133688,61233.0,61232.0,0.09539537]
[1727918555203,0.03693947,61233.0,61232.0,0.09539537]
[1727918555418,0.03693947,61233.0,61232.0,0.10739537]
[1727918555879,0.03693947,61233.0,61232.0,0.27070837]
[1727918556086,0.03693947,61233.0,61232.0,0.10739537]
[1727918556700,0.01133688,61233.0,61232.0,0.10739537]
[1727918559834,0.17464688,61233.0,61232.0,0.07462537]
[1727918560053,0.17464688,61233.0,61232.0,0.05162537]
[1727918560288,0.17464688,61233.0,61232.0,0.025]
[1727918560780,0.17464688,61233.0,61232.0,0.012]
[1727918560996,0.34642706,61233.0,61232.0,0.009]
[1727918561245,0.34642706,61233.0,61232.0,0.017]
[1727918561466,0.17464688,61233.0,61232.0,0.017]
[1727918561689,0.17464688,61233.0,61232.0,0.009]
[1727918562156,0.17464688,61233.0,61232.0,0.012]
[1727918562574,0.163323,61228.0,61227.0,0.023]
[1727918563903,0.1889287,61228.0,61227.0,0.023]
[1727918564109,0.1889287,61228.0,61227.0,0.03]
[1727918564429,0.1889287,61228.0,61227.0,0.036]
[1727918565443,0.0256057,61228.0,61227.0,0.036]
[1727918565590,0.0256057,61228.0,61227.0,0.10006091]
[1727918566980,0.163321,61229.0,61227.0,0.10006091]
[1727918567875,0.163321,61229.0,61227.0,0.09406091]
[1727918568335,0.163321,61229.0,61227.0,0.09906091]
[1727918568793,0.163321,61229.0,61227.0,0.09206091]
[1727918569016,0.163321,61229.0,61228.0,0.03989099]
[1727918570274,0.18892646,61229.0,61228.0,0.04589099]
[1727918570689,0.02560546,61229.0,61228.0,0.04589099]
[1727918570892,0.18892646,61229.0,61228.0,0.04589099]
[1727918571327,0.163321,61229.0,61228.0,0.05089099]
[1727918574501,0.1889261,61229.0,61228.0,0.05089099]
[1727918575805,0.163321,61229.0,61228.0,0.011]
[1727918576449,0.164139,61229.0,61228.0,0.011]
[1727918581880,0.000818,61229.0,61228.0,0.011]
[1727918582133,0.02642292,61229.0,61228.0,0.011]
[1727918582367,0.18974392,61229.0,61228.0,0.0728176]
[1727918582788,0.02642292,61229.0,61228.0,0.0728176]
[1727918584074,0.164139,61229.0,61228.0,0.0728176]
[1727918584287,0.000818,61229.0,61228.0,0.0728176]
[1727918585127,0.000818,61229.0,61228.0,0.2591406]
[1727918586036,0.000818,61229.0,61228.0,0.27870844]
[1727918586916,0.000818,61229.0,61228.0,0.2591406]
[1727918587163,0.000818,61229.0,61228.0,0.27866641]
[1727918587373,0.000818,61229.0,61228.0,0.27866965]
[1727918587614,0.000818,61229.0,61228.0,0.11534665]
[1727918588695,0.000818,61229.0,61228.0,0.27866965]
[1727918588917,0.000818,61229.0,61228.0,0.27944853]
[1727918589141,0.000818,61229.0,61228.0,0.37186807]
[1727918589382,0.000818,61229.0,61228.0,0.27776965]
[1727918590019,0.000818,61229.0,61228.0,0.11444665]
[1727918590020,0.164139,61229.0,61228.0,0.11444665]
[1727918590257,0.164139,61229.0,61228.0,0.0101]
[1727918591369,0.333439,61229.0,61228.0,0.0101]
[1727918591595,0.433439,61229.0,61228.0,0.0101]
[1727918591823,0.433439,61229.0,61221.0,0.001634]
[1727918591824,0.51031918,61222.0,61221.0,0.001634]
[1727918592095,0.6266834,61222.0,61221.0,0.001634]
[1727918592773,0.263339,61222.0,61221.0,0.001634]
[1727918592987,0.165339,61222.0,61221.0,0.002634]
[1727918593212,0.163339,61222.0,61221.0,0.001634]
[1727918593646,0.165339,61222.0,61221.0,0.002634]
[1727918593862,0.165339,61222.0,61221.0,0.04391271]
[1727918594362,0.172339,61222.0,61221.0,0.04491271]
[1727918594813,0.172339,61222.0,61221.0,0.04391271]
[1727918594814,0.170339,61222.0,61221.0,0.04391271]
[1727918595021,0.163339,61222.0,61221.0,0.04291271]
[1727918595235,0.172339,61222.0,61221.0,0.04591271]
[1727918595442,0.163339,61222.0,61221.0,0.04491271]
[1727918595891,0.163339,61222.0,61221.0,0.04791271]
[1727918596097,0.163339,61222.0,61221.0,0.006634]
[1727918596521,0.18894739,61222.0,61221.0,0.006634]
[1727918597636,0.163339,61222.0,61221.0,0.006634]
[1727918597865,0.163339,61222.0,61221.0,0.004634]
[1727918598073,0.165339,61222.0,61221.0,0.001634]
[1727918599011,0.170339,61222.0,61221.0,0.001634]
[1727918599429,0.165339,61222.0,61221.0,0.001634]
[1727918599639,0.19294955,61222.0,61221.0,0.001634]
[1727918604155,0.167339,61222.0,61221.0,0.001634]
[1727918607454,0.19295018,61222.0,61221.0,0.001634]
[1727918607867,0.19095018,61222.0,61221.0,0.001634]
[1727918608078,0.18895018,61222.0,61221.0,0.001634]
[1727918608288,0.19095018,61222.0,61221.0,0.001634]
[1727918608709,0.18895018,61222.0,61221.0,0.001634]
[1727918608921,0.18995018,61222.0,61221.0,0.001634]
[1727918609163,0.19095018,61222.0,61221.0,0.001634]
[1727918614224,0.165339,61222.0,61221.0,0.001634]
[1727918615677,0.29705012,61222.0,61221.0,0.001634]
[1727918615919,0.39705012,61222.0,61221.0,0.001634]
[1727918616419,0.265339,61222.0,61221.0,0.001634]
[1727918616927,0.264339,61222.0,61221.0,0.001634]
[1727918617425,0.268339,61222.0,61221.0,0.001634]
[1727918617663,0.28895078,61222.0,61221.0,0.001634]
[1727918618143,0.29395078,61222.0,61221.0,0.001634]
[1727918618649,0.28995078,61222.0,61221.0,0.001634]
[1727918618900,0.29095078,61222.0,61221.0,0.001634]
[1727918621697,0.265339,61222.0,61221.0,0.001634]
[1727918624606,0.29095135,61222.0,61221.0,0.001634]
[1727918626664,0.265339,61222.0,61221.0,0.001634]
[1727918631460,0.290951,61222.0,61221.0,0.001634]
[1727918632283,0.265339,61222.0,61221.0,0.001634]
[1727918635518,0.265339,61222.0,61221.0,0.082034]
[1727918635732,0.165339,61222.0,61221.0,0.0904008]
[1727918635940,0.165339,61222.0,61221.0,0.082034]
[1727918637142,0.163339,61222.0,61221.0,0.001634]
[1727918637387,0.163339,61222.0,61221.0,0.003634]
[1727918637601,0.163339,61222.0,61221.0,0.001634]
[1727918637836,0.163339,61222.0,61221.0,0.003634]
[1727918638064,0.5666303,61222.0,61221.0,0.005634]
[1727918638280,0.5666303,61222.0,61221.0,0.003634]
[1727918638697,0.5666303,61222.0,61221.0,0.006634]
[1727918639178,0.59224316,61222.0,61221.0,0.006634]
[1727918639407,0.46073204,61222.0,61221.0,0.006634]
[1727918639637,0.46073204,61222.0,61221.0,0.004634]
[1727918639887,0.46073204,61222.0,61221.0,0.007634]
[1727918640129,0.46073204,61222.0,61221.0,0.004634]
[1727918640378,0.19595186,61222.0,61221.0,0.002634]
[1727918640593,0.20295186,61222.0,61221.0,0.003634]
[1727918640805,0.20295186,61222.0,61221.0,0.002634]
[1727918640806,0.19595186,61222.0,61221.0,0.002634]
[1727918641027,0.18895186,61222.0,61221.0,0.002634]
[1727918641285,0.20095186,61222.0,61221.0,0.002634]
[1727918641493,0.20095186,61222.0,61221.0,0.001634]
[1727918641674,0.20095186,61222.0,61221.0,0.004634]
[1727918641675,0.19495186,61222.0,61221.0,0.004634]
[1727918641973,0.29495186,61222.0,61221.0,0.008634]
[1727918643064,0.28895186,61222.0,61221.0,0.005634]
[1727918643488,0.263339,61222.0,61221.0,0.001634]
[1727918643698,0.2768847,61222.0,61221.0,0.001634]
[1727918643911,0.44707141,61222.0,61221.0,0.002634]
[1727918644133,0.56771386,61222.0,61221.0,0.002634]
[1727918644380,0.57471386,61222.0,61221.0,0.003634]
[1727918645053,0.45207141,61222.0,61221.0,0.003634]
[1727918645504,0.57471386,61222.0,61221.0,0.003634]
[1727918646362,0.45207141,61222.0,61221.0,0.003634]
[1727918646568,0.43807141,61222.0,61221.0,0.001634]
[1727918646796,0.44507141,61222.0,61221.0,0.002634]
[1727918647004,0.45207141,61222.0,61221.0,0.003634]
[1727918647214,0.43807141,61222.0,61221.0,0.001634]
[1727918647631,0.45207141,61222.0,61221.0,0.003634]
[1727918648094,0.5501609,61222.0,61221.0,0.003634]
[1727918648306,0.45207141,61222.0,61221.0,0.003634]
[1727918648516,0.2888847,61222.0,61221.0,0.003634]
[1727918650831,0.31449733,61222.0,61221.0,0.003634]
[1727918652338,0.2888847,61222.0,61221.0,0.003634]
[1727918652829,0.2888847,61222.0,61217.0,0.001634]
[1727918652830,0.43513018,61218.0,61217.0,0.001634]
[1727918653065,0.43714618,61212.0,61211.0,0.24516414]
[1727918653299,1.21276218,61212.0,61211.0,0.24516414]
[1727918653534,1.21276218,61212.0,61202.0,0.24516414]
[1727918653535,0.2678,61208.0,61202.0,0.24516414]
[1727918653753,0.76418671,61207.0,61202.0,0.24516414]
[1727918653966,0.58321918,61207.0,61202.0,0.24516414]
[1727918654623,0.54913318,61207.0,61202.0,0.24516414]
[1727918654835,0.54913318,61207.0,61206.0,0.002634]
[1727918655047,0.57475198,61207.0,61206.0,0.002634]
[1727918655233,0.57275198,61207.0,61206.0,0.001634]
[1727918655939,0.57475198,61207.0,61206.0,0.001634]
[1727918656609,0.57475198,61207.0,61206.0,0.002634]
[1727918656610,0.74993869,61207.0,61206.0,0.002634]
[1727918656844,0.58675198,61207.0,61206.0,0.002634]
[1727918657085,0.46077898,61207.0,61206.0,0.001634]
[1727918657295,0.44616018,61207.0,61206.0,0.001634]
[1727918657500,0.45816018,61207.0,61206.0,0.002634]
[1727918659764,0.44616018,61207.0,61206.0,0.001634]
[1727918659980,0.26338,61207.0,61206.0,0.02631381]
[1727918660202,0.16738,61207.0,61206.0,0.001634]
[1727918660423,0.17138,61207.0,61206.0,0.001634]
[1727918660643,0.18899555,61207.0,61206.0,0.001634]
[1727918660862,0.19199555,61207.0,61206.0,0.001634]
[1727918661083,0.19499555,61207.0,61206.0,0.001634]
[1727918661317,0.19499555,61207.0,61206.0,0.02631381]
[1727918661528,0.19199555,61207.0,61206.0,0.10251381]
[1727918661743,0.18899555,61207.0,61206.0,0.077834]
[1727918663126,0.18899555,61207.0,61206.0,0.079834]
[1727918663557,0.18899555,61207.0,61206.0,0.077834]
[1727918663993,0.18899555,61207.0,61206.0,0.080834]
[1727918664210,0.16338,61207.0,61206.0,0.080834]
[1727918664891,0.16338,61207.0,61206.0,0.077834]